bitfinex/quotes_ETHUSD_20241130
["timestamp","ask_amount","ask_price","bid_price","bid_amount"]
[1732930284009,2.78056,3596.4,3596.3,1.18946691]
[1732930284200,2.78056,3596.4,3596.3,1.62065421]
[1732930286311,2.78056,3596.4,3596.3,1.18946691]
[1732930286917,2.78023,3596.9,3596.3,2.98295421]
[1732930287138,2.78025,3596.8,3596.6,0.4311873]
[1732930287310,2.78009,3597.0,3596.7,1.10349468]
[1732930287522,2.78017,3596.9,3596.8,0.67230738]
[1732930287678,4.581187,3596.9,3596.8,1.18946691]
[1732930288604,3.058187,3596.9,3596.8,0.67230738]
[1732930288774,2.78004,3597.1,3596.8,1.19044174]
[1732930288974,2.78006,3597.1,3596.9,0.672736]
[1732930289174,2.78001,3597.1,3597.0,0.25900838]
[1732930289374,2.78001,3597.1,3597.0,0.672736]
[1732930289574,2.78001,3597.1,3597.0,1.19087036]
[1732930290988,2.77993,3597.3,3597.0,1.19087036]
[1732930291234,2.77995,3597.2,3597.1,1.19087036]
[1732930291931,2.77993,3597.3,3596.8,0.4315941]
[1732930292078,2.77993,3597.2,3597.1,1.19154334]
[1732930295246,2.77975,3597.5,3597.1,2.71666953]
[1732930295553,2.77975,3597.5,3597.2,0.93291937]
[1732930295734,2.77975,3597.5,3597.3,1.19206364]
[1732930295893,2.78001,3597.1,3597.0,0.43190712]
[1732930296091,2.78001,3597.1,3597.0,1.39647678]
[1732930296631,2.78001,3597.1,3597.0,1.19173713]
[1732930297214,5.55979,3597.3,3597.0,1.19173713]
[1732930297399,2.77993,3597.2,3597.1,1.19173713]
[1732930298834,2.77987,3597.3,3597.1,0.41442025]
[1732930299014,2.77987,3597.3,3597.2,0.6734329]
[1732930299432,2.77987,3597.3,3597.2,1.19145821]
[1732930299592,2.77986,3597.3,3597.2,1.19145821]
[1732930299793,2.77986,3597.3,3597.2,0.6734329]
[1732930300227,2.77986,3597.3,3597.2,1.19145821]
[1732930300416,2.77986,3597.3,3597.2,0.6734329]
[1732930303137,4.28866,3597.3,3597.2,0.6734329]
[1732930303339,4.844618,3597.3,3597.2,0.6734329]
[1732930303496,4.844618,3597.3,3597.2,0.25901265]
[1732930304607,2.78032,3596.7,3596.6,0.41433671]
[1732930304793,2.78032,3596.7,3596.6,1.19127754]
[1732930305509,3.336375,3596.7,3596.6,1.19127754]
[1732930305715,4.845175,3596.7,3596.6,0.67332059]
[1732930305913,4.845175,3596.7,3596.6,0.25898388]
[1732930306451,5.10515275,3596.7,3596.6,0.25898388]
[1732930306818,5.10515422,3596.7,3596.6,0.25898388]
[1732930306999,4.845175,3596.7,3596.6,0.67350711]
[1732930307200,4.845175,3596.7,3596.6,0.25898388]
[1732930307437,4.845175,3596.7,3596.6,0.67361207]
[1732930308308,4.845175,3596.7,3596.6,0.25898388]
[1732930308514,4.845175,3596.7,3595.6,3.0]
[1732930308722,4.845175,3596.7,3595.9,0.43189471]
[1732930308949,2.78083,3596.1,3596.0,0.77741154]
[1732930309154,2.78083,3596.1,3596.0,1.19203046]
[1732930310011,2.78064,3596.3,3596.0,1.74203046]
[1732930310321,2.78064,3596.3,3596.1,1.19203046]
[1732930310510,2.78064,3596.3,3596.0,0.43189471]
[1732930310716,2.78079,3596.1,3596.0,0.98189471]
[1732930310943,2.78079,3596.1,3596.0,2.17403264]
[1732930312418,2.78071,3596.2,3596.0,2.17403264]
[1732930312613,2.78071,3596.2,3596.1,1.19213793]
[1732930313617,2.78064,3596.3,3596.1,3.07234119]
[1732930313815,2.78071,3596.2,3596.1,1.88020326]
[1732930314066,2.78044,3596.6,3596.2,0.55]
[1732930314213,2.78044,3596.6,3596.3,1.19253707]
[1732930314553,2.78061,3596.4,3596.2,0.55]
[1732930314753,2.78061,3596.4,3596.3,1.19232548]
[1732930314941,2.78051,3596.5,3596.3,1.19232548]
[1732930315151,2.78051,3596.5,3596.4,1.19232548]
[1732930315452,2.78051,3596.5,3596.2,0.55]
[1732930315667,2.78044,3596.6,3596.2,0.55]
[1732930315668,2.78055,3596.4,3596.3,0.77771124]
[1732930316011,2.78055,3596.4,3596.3,1.19248926]
[1732930317464,4.914249,3596.4,3596.3,1.19248926]
[1732930317969,4.914249,3596.4,3596.3,0.25923708]
[1732930318205,4.914249,3596.4,3596.3,0.67418605]
[1732930318649,4.914249,3596.4,3596.3,0.25923708]
[1732930318851,5.17423047,3596.4,3596.3,0.25923708]
[1732930319448,5.43415064,3596.4,3596.3,0.25923708]
[1732930319984,1.5776,3596.2,3595.8,0.41492628]
[1732930320288,1.5776,3596.2,3595.9,0.25935254]
[1732930320289,4.35846,3596.0,3595.9,0.25935254]
[1732930320483,4.61838017,3596.0,3595.9,0.25935254]
[1732930321183,4.359,3595.3,3595.2,0.93374046]
[1732930321548,4.359,3595.3,3595.2,0.41502449]
[1732930321746,4.359,3595.3,3594.8,0.51871597]
[1732930321747,2.78171,3594.9,3594.8,0.51871597]
[1732930321966,2.78171,3594.9,3594.8,0.93350845]
[1732930322243,2.78171,3594.9,3594.8,0.41479248]
[1732930322647,2.78171,3594.9,3594.8,0.96479248]
[1732930324159,2.78188,3594.7,3594.5,0.55]
[1732930324563,2.7818,3594.8,3594.5,0.78444151]
[1732930324871,2.78187,3594.7,3594.6,0.9643526]
[1732930325560,2.78181,3594.8,3594.6,0.9643526]
[1732930325783,2.78181,3594.8,3594.7,0.9643526]
[1732930326692,2.7817,3595.0,3594.5,0.55]
[1732930326910,2.78188,3594.7,3594.6,0.96356701]
[1732930327403,2.78188,3594.7,3594.6,0.55]
[1732930327767,2.78188,3594.7,3594.6,0.9634752]
[1732930328311,2.78188,3594.7,3594.6,0.55]
[1732930328477,2.78173,3594.9,3594.7,0.55]
[1732930328666,2.78179,3594.8,3594.7,0.55]
[1732930328867,2.78137,3595.4,3594.7,0.55]
[1732930328868,2.78153,3595.2,3594.7,0.55]
[1732930329085,2.78156,3595.1,3594.9,0.55]
[1732930329805,2.78156,3595.1,3594.9,0.4133768]
[1732930329981,2.78156,3595.1,3595.0,0.55]
[1732930330178,1.5804,3595.6,3594.8,0.55]
[1732930330179,2.7817,3595.0,3594.8,0.55]
[1732930330384,4.36211,3594.9,3594.7,0.41339845]
[1732930330586,2.78194,3594.7,3594.2,0.41350001]
[1732930330783,2.78194,3594.7,3594.2,0.47735]
[1732930330989,2.78209,3594.5,3594.3,0.41351007]
[1732930331203,2.78209,3594.5,3594.4,0.41351007]
[1732930331718,2.78209,3594.5,3594.4,0.55]
[1732930331876,2.78209,3594.5,3594.4,0.96351007]
[1732930332271,2.78172,3594.9,3594.4,0.96351007]
[1732930332509,2.78172,3594.9,3594.7,0.55]
[1732930332711,2.78172,3594.9,3594.7,0.96351007]
[1732930333209,2.78172,3594.9,3594.8,1.22197481]
[1732930333425,2.78157,3595.1,3594.9,0.55]
[1732930333588,2.78157,3595.1,3595.0,0.80846474]
[1732930333794,2.78157,3595.1,3595.0,1.22197481]
[1732930334312,2.78157,3595.1,3595.0,0.80846474]
[1732930334479,2.78157,3595.1,3595.0,1.22197481]
[1732930334832,2.78157,3595.1,3595.0,0.80846474]
[1732930335411,2.78157,3595.1,3595.0,1.22197481]
[1732930336089,2.78157,3595.1,3595.0,0.80846474]
[1732930336680,2.78157,3595.1,3595.0,1.22197481]
[1732930339830,1.5804,3595.5,3595.1,0.55]
[1732930339831,4.36167,3595.5,3595.1,0.55]
[1732930339995,4.36167,3595.5,3595.2,0.67197481]
[1732930339996,2.78146,3595.3,3595.2,0.67197481]
[1732930340202,2.78146,3595.3,3595.2,1.22197481]
[1732930341714,2.78146,3595.3,3595.2,0.55]
[1732930341896,2.78146,3595.3,3595.2,1.22343916]
[1732930344464,2.78146,3595.3,3595.2,1.74295379]
[1732930344642,2.78146,3595.3,3595.2,1.22427823]
[1732930345211,2.78146,3595.3,3595.2,1.74295379]
[1732930346407,4.37656,3595.3,3595.2,1.74295379]
[1732930347156,4.37656,3595.3,3595.2,1.19295379]
[1732930347157,5.092348,3595.3,3595.2,1.19295379]
[1732930347298,5.35266816,3595.3,3595.2,0.25933778]
[1732930350150,5.35266816,3595.3,3595.2,5.1e-07]
[1732930350359,2.78241,3594.0,3593.8,0.43222963]
[1732930350646,2.78241,3594.0,3593.9,0.93687881]
[1732930350849,2.78241,3594.0,3593.9,0.52051369]
[1732930351156,2.78241,3594.0,3593.9,0.93692464]
[1732930351516,2.78241,3594.0,3593.9,1.48692464]
[1732930354334,2.78241,3594.0,3593.9,1.48554518]
[1732930356371,2.78241,3594.0,3593.9,0.96579786]
[1732930356986,2.78241,3594.0,3593.9,1.48554518]
[1732930357122,2.78241,3594.0,3593.9,0.96579786]
[1732930357630,2.78241,3594.0,3593.9,0.96539096]
[1732930357965,2.78241,3594.0,3593.9,0.55]
[1732930358169,2.78241,3594.0,3593.9,0.96535549]
[1732930358653,2.78241,3594.0,3593.9,0.93454985]
[1732930358859,3.496813,3594.0,3593.9,0.41535549]
[1732930359526,2.78272,3593.6,3593.5,1.06919436]
[1732930359727,2.78272,3593.6,3593.5,0.96543054]
[1732930360966,2.78263,3593.8,3593.5,0.41537882]
[1732930361267,2.78264,3593.7,3593.6,0.96537882]
[1732930362376,2.78264,3593.7,3593.6,1.22495118]
[1732930363238,4.857267,3593.7,3593.6,0.67495118]
[1732930363483,4.857267,3593.7,3593.6,0.25957236]
[1732930364588,3.339167,3593.7,3593.6,0.80957236]
[1732930364876,2.78264,3593.7,3593.6,1.22478743]
[1732930365437,1.5181,3594.0,3593.7,0.55]
[1732930365438,2.78243,3594.0,3593.7,0.55]
[1732930365686,2.78243,3594.0,3593.9,0.55]
[1732930365974,2.78243,3594.0,3593.9,1.22478743]
[1732930366574,4.930999,3594.0,3593.9,0.67478743]
[1732930366880,2.78256,3593.8,3593.7,0.41521507]
[1732930367138,2.78256,3593.8,3592.7,1.3355]
[1732930367139,2.78303,3593.2,3592.7,1.3355]
[1732930367417,3.061333,3593.2,3593.1,0.70268599]
[1732930367577,2.78303,3593.2,3593.1,1.11770836]
[1732930367775,2.78303,3593.2,3593.1,0.70264619]
[1732930367975,4.37513,3593.2,3593.1,0.70264619]
[1732930369719,6.91277993,3593.2,3593.1,2.33e-06]
[1732930369893,10.88814832,3593.2,3593.1,2.33e-06]
[1732930370309,10.88814832,3593.2,3591.5,1.3355]
[1732930370310,2.78427,3591.6,3591.5,1.3355]
[1732930370516,2.78427,3591.6,3591.5,0.67441861]
[1732930370732,2.78427,3591.6,3591.5,0.2593826]
[1732930370943,2.78427,3591.6,3591.5,0.25943842]
[1732930373640,3.341108,3591.6,3591.5,0.25943842]
[1732930374213,1.5921,3592.0,3591.5,0.25943842]
[1732930374599,2.78419,3591.7,3591.6,0.25943842]
[1732930375146,4.37607,3592.0,3591.6,0.80943842]
[1732930375353,2.78397,3592.0,3591.7,0.80943842]
[1732930375523,2.78381,3592.2,3591.9,0.55]
[1732930375725,2.78381,3592.2,3592.0,0.25943842]
[1732930376049,2.78381,3592.2,3592.1,0.25943842]
[1732930376605,1.5921,3592.6,3592.2,0.55]
[1732930376820,2.78365,3592.4,3592.3,0.25943842]
[1732930377070,2.78373,3592.3,3592.2,0.55]
[1732930377210,2.78373,3592.3,3592.2,0.808954]
[1732930377518,2.78373,3592.3,3592.2,0.80896377]
[1732930377917,3.5434323,3592.3,3592.2,0.25896377]
[1732930378257,2.78401,3592.0,3591.7,0.55]
[1732930378458,2.78401,3592.0,3591.8,0.67333354]
[1732930378660,2.78401,3592.0,3591.9,0.67333354]
[1732930378960,2.78401,3592.0,3591.9,0.25898171]
[1732930379259,2.78401,3592.0,3591.3,1.3355]
[1732930379260,2.78441,3591.5,3591.2,0.51792755]
[1732930379552,2.78441,3591.5,3591.3,0.67340952]
[1732930379709,2.78441,3591.5,3591.0,0.51792755]
[1732930379710,2.78441,3591.5,3591.4,0.67340952]
[1732930380130,2.78419,3591.7,3591.4,0.67340952]
[1732930380356,2.78404,3591.9,3591.5,0.67340952]
[1732930380654,2.78434,3591.6,3591.1,0.55]
[1732930380875,2.78439,3591.5,3591.2,1.22339765]
[1732930381014,2.78439,3591.5,3591.4,0.55]
[1732930381215,2.78439,3591.5,3591.4,1.22339765]
[1732930381715,2.78426,3591.7,3591.4,1.22339765]
[1732930381910,2.78426,3591.7,3591.5,0.67339765]
[1732930382225,2.78426,3591.7,3591.6,0.2589431]
[1732930382824,2.2359023,3592.3,3591.7,0.55]
[1732930383031,2.7839,3592.1,3591.8,0.67322077]
[1732930383249,4.25993,3592.3,3591.7,0.55]
[1732930383250,2.78381,3592.2,3591.9,0.67322077]
[1732930383546,1.4762,3592.3,3592.0,0.67322077]
[1732930383547,2.78388,3592.1,3592.0,0.67322077]
[1732930383716,4.25993,3592.3,3592.0,0.67322077]
[1732930383717,2.78373,3592.3,3592.0,0.67322077]
[1732930384055,2.78373,3592.3,3591.7,0.55]
[1732930384056,2.78359,3592.5,3592.1,0.2589431]
[1732930384265,1.4762,3592.6,3592.3,0.55]
[1732930384470,1.4762,3592.6,3592.2,0.67321809]
[1732930384471,1.4762,3593.0,3592.5,0.55]
[1732930384626,2.78305,3593.2,3592.5,0.55]
[1732930384811,2.78333,3592.9,3592.7,0.55]
[1732930385162,2.783,3593.3,3592.9,0.55]
[1732930385452,2.78297,3593.3,3593.1,0.55]
[1732930385659,1.4762,3593.4,3592.8,0.51782783]
[1732930385660,2.78303,3593.2,3592.9,0.55]
[1732930385825,2.7828,3593.6,3593.1,0.55]
[1732930386030,1.4762,3594.2,3593.3,0.55]
[1732930386212,2.78271,3593.7,3593.3,0.55]
[1732930386413,1.4762,3594.2,3592.9,1.3632]
[1732930386414,2.78252,3593.9,3593.5,0.55]
[1732930386614,1.4762,3594.2,3593.5,0.55]
[1732930386615,2.78274,3593.6,3593.5,0.55]
[1732930386919,2.78274,3593.6,3593.5,1.22323318]
[1732930387863,2.78274,3593.6,3593.5,0.80893584]
[1732930388218,2.78274,3593.6,3593.5,1.22305458]
[1732930388923,2.78262,3593.8,3593.5,1.22305458]
[1732930389148,2.78264,3593.7,3593.6,0.67305458]
[1732930389319,2.78262,3593.8,3593.6,0.80893584]
[1732930389521,3.339124,3593.8,3593.7,0.25893584]
[1732930389720,3.339124,3593.8,3593.6,0.55]
[1732930389955,2.78242,3594.0,3593.7,0.80881275]
[1732930390159,2.78242,3594.0,3593.3,2.7829]
[1732930390160,2.78249,3593.9,3593.8,0.80881275]
[1732930390550,2.78249,3593.9,3593.8,1.22289623]
[1732930390867,2.78249,3593.9,3593.8,0.80881275]
[1732930391737,2.78249,3593.9,3593.8,1.22300237]
[1732930392184,5.118493,3593.9,3593.8,0.25881275]
[1732930392323,1.6319,3593.8,3592.5,0.51812288]
[1732930392525,2.78323,3593.0,3592.6,1.19175005]
[1732930392753,2.78323,3593.0,3592.7,0.67362717]
[1732930392962,2.78334,3592.8,3592.6,0.51812288]
[1732930393129,2.78342,3592.7,3592.5,0.51812288]
[1732930393506,2.78328,3592.9,3592.6,0.67383885]
[1732930393764,2.78318,3593.0,3592.7,0.67383885]
[1732930393937,0.441478,3593.1,3592.8,0.6738458]
[1732930394138,2.78318,3593.0,3592.9,0.25917143]
[1732930395558,2.78318,3593.0,3592.9,1.22397581]
[1732930396284,2.78318,3593.0,3592.9,1.22407985]
[1732930396763,4.41499,3593.2,3592.9,1.22407985]
[1732930396963,4.41499,3593.2,3593.0,0.67407985]
[1732930397309,2.78303,3593.2,3593.1,1.2242876]
[1732930399373,2.78303,3593.2,3593.1,0.80926148]
[1732930399537,2.78303,3593.2,3593.1,0.80937072]
[1732930400069,3.502813,3593.2,3593.1,0.25937072]
[1732930400237,0.719783,3593.2,3592.2,4.14699]
[1732930400576,2.7834,3592.8,3592.5,0.55]
[1732930401378,2.7834,3592.8,3592.3,0.55]
[1732930402294,2.7834,3592.8,3592.5,0.55]
[1732930402444,2.7834,3592.8,3592.7,0.55]
[1732930402646,2.7834,3592.8,3592.7,1.22433656]
[1732930403558,2.78304,3593.2,3592.7,1.22433656]
[1732930403862,2.78311,3593.1,3592.9,0.55]
[1732930404075,2.78311,3593.1,3593.0,1.22433656]
[1732930404266,2.78305,3593.2,3593.1,0.55]
[1732930404575,2.78296,3593.3,3593.1,0.80936021]
[1732930404840,2.78296,3593.3,3593.2,0.80936021]
[1732930410083,2.78296,3593.3,3593.2,1.22486773]
[1732930413163,2.78284,3593.5,3593.2,1.22486773]
[1732930413364,2.78267,3593.7,3593.3,1.22486773]
[1732930413680,2.78279,3593.6,3593.5,0.55]
[1732930413862,2.78279,3593.6,3593.5,1.22486773]
[1732930414061,2.78279,3593.6,3593.5,1.07037998]
[1732930414265,2.78279,3593.6,3593.5,1.74691785]
[1732930414712,2.78252,3593.9,3593.5,1.74691785]
[1732930414869,2.78256,3593.8,3593.7,0.55]
[1732930415067,2.78256,3593.8,3593.7,1.22651878]
[1732930415898,3.04301498,3593.8,3593.7,1.22651878]
[1732930416607,3.04300465,3593.8,3593.7,1.22651878]
[1732930416967,2.78256,3593.8,3593.7,1.22651878]
[1732930419507,2.78256,3593.8,3593.7,1.74720961]
[1732930419874,2.78256,3593.8,3593.7,1.22651878]
[1732930421597,2.78256,3593.8,3593.7,1.74732179]
[1732930422106,2.78256,3593.8,3593.7,1.22651878]
[1732930423214,4.958868,3593.8,3593.7,0.67651878]
[1732930423418,5.21932212,3593.8,3593.7,0.67651878]
[1732930424113,2.176308,3593.8,3592.8,1.3659]
[1732930424327,2.78325,3593.0,3592.8,1.3659]
[1732930424526,2.78326,3592.9,3592.8,1.3659]
[1732930424703,2.78325,3593.0,3592.9,0.41680076]
[1732930424919,2.78325,3593.0,3592.9,0.93780516]
[1732930425093,2.78325,3593.0,3592.9,1.19830659]
[1732930425533,2.78315,3593.1,3592.9,1.19830659]
[1732930425691,2.78311,3593.1,3593.0,1.74830659]
[1732930427473,1.5471,3593.5,3593.0,1.74860143]
[1732930427474,2.78296,3593.3,3593.0,1.74860143]
[1732930427686,2.78296,3593.3,3593.2,0.55]
[1732930427907,2.78296,3593.3,3593.2,1.07109335]
[1732930428227,2.78296,3593.3,3593.2,1.48799035]
[1732930428424,2.78296,3593.3,3593.2,1.74854322]
[1732930430877,2.78296,3593.3,3593.2,1.74867694]
[1732930432341,2.7828,3593.5,3593.2,1.74867694]
[1732930432506,2.7828,3593.5,3593.4,0.55]
[1732930432705,2.7828,3593.5,3593.4,1.74867694]
[1732930433003,2.78267,3593.7,3593.4,1.74867694]
[1732930433207,2.78267,3593.7,3593.6,0.55]
[1732930433398,2.78267,3593.7,3593.6,1.74867694]
[1732930434234,2.78267,3593.7,3593.6,0.55]
[1732930434545,2.78267,3593.7,3593.6,1.19886686]
[1732930435145,4.61033907,3593.7,3593.6,0.6776204]
[1732930435443,4.35007,3593.7,3593.6,1.19889017]
[1732930435607,3.04296789,3593.7,3593.6,1.19889017]
[1732930437643,3.04296789,3593.7,3593.6,1.19904512]
[1732930438008,2.78277,3593.6,3593.3,0.55]
[1732930438210,2.78277,3593.6,3593.5,0.55]
[1732930438441,2.78277,3593.6,3593.5,1.74904178]
[1732930438750,2.78277,3593.6,3593.5,1.19904178]
[1732930438954,2.78277,3593.6,3593.5,1.74904178]
[1732930440658,1.5674,3594.5,3593.6,0.55]
[1732930440965,2.78184,3594.8,3594.3,1.9159]
[1732930441127,2.78197,3594.6,3594.5,0.55]
[1732930441330,2.78197,3594.6,3594.5,1.19910134]
[1732930441556,4.905747,3594.6,3594.5,1.19910134]
[1732930441862,5.16590286,3594.6,3594.5,0.67775293]
[1732930442881,5.16590286,3594.6,3594.5,0.2606742]
[1732930444683,2.78197,3594.6,3594.5,1.19789589]
[1732930445356,2.78197,3594.6,3594.5,0.67721604]
[1732930445551,2.78197,3594.6,3594.5,1.19789589]
[1732930445985,2.7818,3594.8,3594.5,1.19789589]
[1732930445986,2.78188,3594.7,3594.5,1.19789589]
[1732930446306,2.78188,3594.7,3594.6,0.67721604]
[1732930446507,2.78145,3595.3,3594.7,1.9138]
[1732930446680,2.78138,3595.4,3594.9,0.55]
[1732930446873,2.78138,3595.4,3595.1,0.55]
[1732930447118,2.78138,3595.4,3595.2,1.22611225]
[1732930447119,2.7814,3595.3,3595.2,1.22611225]
[1732930447814,2.78138,3595.4,3595.2,1.22611225]
[1732930448107,2.78138,3595.4,3595.3,0.67611225]
[1732930448259,2.78138,3595.4,3595.3,0.26004317]
[1732930448465,2.78121,3595.6,3595.4,0.55]
[1732930448770,2.7811,3595.7,3595.5,0.81004317]
[1732930448971,2.7811,3595.7,3595.6,0.26004317]
[1732930449604,2.7811,3595.7,3595.5,0.55]
[1732930449779,2.78109,3595.7,3595.6,0.25939347]
[1732930452293,2.78109,3595.7,3595.4,0.55]
[1732930452463,2.78125,3595.5,3595.4,0.55]
[1732930452661,2.78088,3596.0,3595.4,1.00034174]
[1732930452897,1.4735,3596.5,3595.4,1.00034174]
[1732930452898,2.78072,3596.2,3595.6,1.9138]
[1732930453077,2.78072,3596.2,3595.7,0.41427503]
[1732930453273,2.78072,3596.2,3595.8,0.80892189]
[1732930453502,2.78072,3596.2,3596.0,0.55]
[1732930453805,2.78063,3596.3,3596.2,0.55]
[1732930454009,2.78063,3596.3,3596.2,0.80874776]
[1732930454203,2.78063,3596.3,3596.2,0.55]
[1732930454362,2.78083,3596.1,3595.9,0.55]
[1732930454705,2.78083,3596.1,3596.0,0.80858341]
[1732930455368,2.78083,3596.1,3595.7,0.55]
[1732930455571,2.78087,3596.0,3595.9,0.55]
[1732930455965,2.78075,3596.2,3595.9,0.80849406]
[1732930456185,2.78057,3596.4,3595.7,3.33109]
[1732930456390,2.78057,3596.4,3596.1,0.55]
[1732930456675,2.78057,3596.4,3596.0,0.55]
[1732930456874,2.78065,3596.3,3596.2,0.55]
[1732930457076,2.78071,3596.2,3596.0,0.55]
[1732930457277,2.78071,3596.2,3596.1,0.55]
[1732930457716,2.78071,3596.2,3595.8,0.55]
[1732930457923,2.78083,3596.1,3596.0,0.55]
[1732930458090,2.78083,3596.1,3596.0,0.80836291]
[1732930459585,2.78083,3596.1,3595.7,0.55]
[1732930459789,2.78094,3595.9,3595.7,0.55]
[1732930459993,2.78094,3595.9,3595.8,0.80835055]
[1732930461297,2.78087,3596.0,3595.8,0.80835055]
[1732930461506,2.78087,3596.0,3595.9,0.80835055]
[1732930461700,2.78083,3596.1,3596.0,0.55]
[1732930462106,2.78083,3596.1,3596.0,0.80841713]
[1732930463483,4.928277,3596.1,3596.0,0.25841713]
[1732930463796,2.78133,3595.4,3595.3,0.55]
[1732930463997,2.78133,3595.4,3595.3,0.80855932]
[1732930464411,2.78133,3595.4,3595.3,1.22225424]
[1732930464589,2.78127,3595.5,3595.3,0.80855932]
[1732930464801,2.78127,3595.5,3595.4,0.80855932]
[1732930465539,2.78123,3595.6,3595.4,0.80855932]
[1732930465683,2.147447,3596.1,3595.5,1.22238283]
[1732930465684,1.5913,3596.1,3595.5,1.22238283]
[1732930466014,0.41289499,3596.1,3595.7,0.55]
[1732930466218,2.78109,3595.7,3595.2,0.51707088]
[1732930466391,2.78134,3595.4,3595.3,1.48119347]
[1732930466730,2.78121,3595.6,3595.3,1.22294512]
[1732930466931,2.78121,3595.6,3595.5,0.55]
[1732930467137,2.78121,3595.6,3595.5,1.22294512]
[1732930467305,1.5913,3596.0,3595.5,1.22294512]
[1732930467501,2.78107,3595.8,3595.7,0.55]
[1732930467731,1.5699,3596.6,3595.7,2.58674512]
[1732930467933,2.78084,3596.1,3595.9,0.55]
[1732930468236,2.78084,3596.1,3596.0,1.22294512]
[1732930468418,1.5699,3596.6,3596.1,0.55]
[1732930468588,2.78063,3596.4,3596.3,0.55]
[1732930468806,2.78063,3596.4,3596.3,1.22294512]
[1732930469448,2.78063,3596.4,3596.3,0.96412259]
[1732930469627,2.78063,3596.4,3596.3,1.22414857]
[1732930470719,2.78041,3596.6,3596.3,1.22414857]
[1732930470921,2.78041,3596.6,3596.5,0.55]
[1732930471120,4.10754993,3597.1,3596.5,1.74265791]
[1732930471336,2.78034,3596.7,3596.6,0.67414857]
[1732930471607,2.78034,3596.7,3596.6,1.19274254]
[1732930472871,2.78001,3597.1,3596.7,0.55]
[1732930473165,2.77994,3597.2,3596.9,0.55]
[1732930473311,2.78002,3597.1,3597.0,0.67432725]
[1732930473512,2.78002,3597.1,3597.0,1.7431444]
[1732930474532,2.77986,3597.3,3597.0,1.7431444]
[1732930474730,2.77993,3597.2,3597.1,1.1931444]
[1732930475075,2.77982,3597.4,3597.2,0.55]
[1732930475210,2.77982,3597.4,3597.3,1.1931444]
[1732930476150,2.77963,3597.6,3597.4,0.55]
[1732930476372,2.7797,3597.5,3597.4,0.55]
[1732930477068,2.7797,3597.5,3597.4,1.32898534]
[1732930477216,2.7797,3597.5,3597.4,1.7443455]
[1732930479651,2.77965,3597.6,3597.4,3.67233326]
[1732930479856,2.77965,3597.6,3597.5,1.22470689]
[1732930480039,2.77965,3597.6,3597.5,1.74371219]
[1732930483340,2.77965,3597.6,3597.5,2.17621661]
[1732930483516,2.77952,3597.8,3597.5,2.17621661]
[1732930483517,2.77952,3597.8,3597.6,0.55]
[1732930483718,2.77952,3597.8,3597.7,1.19371219]
[1732930484871,1.4915,3599.1,3597.9,0.55]
[1732930485163,1.4915,3599.1,3597.8,1.2784]
[1732930485164,2.77916,3598.2,3598.1,0.55]
[1732930485317,0.426983,3599.0,3598.1,2.17574259]
[1732930485318,2.77906,3598.4,3598.1,2.17574259]
[1732930485651,2.77906,3598.4,3597.8,4.05787]
[1732930485652,2.77906,3598.4,3598.3,0.55]
[1732930485859,2.77906,3598.4,3598.3,1.74371219]
[1732930486152,2.77906,3598.4,3598.3,1.74176001]
[1732930487248,2.77887,3598.6,3598.3,1.74176001]
[1732930487561,2.77887,3598.6,3598.5,0.55]
[1732930487822,2.77887,3598.6,3598.5,1.74176001]
[1732930487992,2.77872,3598.8,3598.5,2.04047121]
[1732930488194,2.77878,3598.7,3598.6,1.19176001]
[1732930488398,2.77878,3598.7,3598.6,1.74176001]
[1732930489410,2.77878,3598.7,3598.6,1.73950024]
[1732930489615,2.77878,3598.7,3598.6,1.22232622]
[1732930489921,2.77878,3598.7,3598.6,0.96373921]
[1732930490431,1.4915,3599.1,3598.6,1.21782425]
[1732930490432,2.77863,3598.9,3598.6,1.21782425]
[1732930490632,2.77863,3598.9,3598.6,2.15318524]
[1732930490797,2.7787,3598.8,3598.7,1.18944603]
[1732930491394,2.7787,3598.8,3598.7,0.67229558]
[1732930491691,2.77854,3599.0,3598.8,0.55]
[1732930491896,2.77854,3599.0,3598.9,1.22229558]
[1732930492214,1.6006,3598.9,3598.6,4.79e-06]
[1732930492412,1.6006,3598.9,3598.3,0.4309587]
[1732930492413,7.37938,3598.7,3597.2,0.4309587]
[1732930492628,2.77993,3597.2,3597.0,0.4309587]
[1732930492832,1.6006,3597.6,3596.7,1.7093587]
[1732930492833,2.78009,3597.0,3596.7,1.7093587]
[1732930492990,2.77997,3597.2,3596.8,0.17093587]
[1732930493981,2.77997,3597.2,3596.9,0.55]
[1732930495329,2.78009,3597.0,3596.9,0.55]
[1732930496080,2.78004,3597.1,3596.9,0.55]
[1732930498011,2.78009,3597.0,3596.9,0.55]
[1732930498227,2.78009,3597.0,3596.4,0.43163662]
[1732930498228,2.78048,3596.5,3596.4,0.43163662]
[1732930498428,2.78062,3596.4,3595.8,0.43163662]
[1732930498606,2.78109,3595.7,3595.5,0.43163662]
[1732930498931,2.78109,3595.7,3595.3,1.71003662]
[1732930499081,2.78094,3595.9,3595.3,1.2784]
[1732930499280,2.78103,3595.8,3595.3,1.2784]
[1732930499529,2.78118,3595.6,3595.4,0.44914666]
[1732930499693,2.78118,3595.6,3595.3,1.2784]
[1732930499901,2.78133,3595.4,3595.2,0.43213065]
[1732930500099,2.78133,3595.4,3595.2,0.86426268]
[1732930500326,2.78133,3595.4,3595.2,0.43213065]
[1732930501392,2.78133,3595.4,3595.3,0.55]
[1732930502338,2.78118,3595.6,3595.3,0.55]
[1732930502504,2.78099,3595.9,3595.3,0.55]
[1732930502505,2.78099,3595.9,3595.3,0.94821307]
[1732930502687,2.78113,3595.7,3595.5,0.55]
[1732930502889,2.78037,3596.7,3595.5,0.55]
[1732930503094,2.78061,3596.4,3595.7,3.33109]
[1732930503424,2.78055,3596.5,3595.7,3.33109]
[1732930503425,2.78068,3596.3,3595.9,0.55]